bitfinex-derivatives/quotes_SOLF0:USTF0_20260104
["timestamp","ask_amount","ask_price","bid_price","bid_amount"]
[1767570464380,7.24135218,133.88,133.81,6.7288]
[1767570464582,5.5618354,133.87,133.81,6.7288]
[1767570464774,7.24135218,133.88,133.81,6.7288]
[1767570464975,5.56143084,133.87,133.81,6.7288]
[1767570465175,7.24135218,133.88,133.81,6.7288]
[1767570465376,5.55982183,133.87,133.81,6.7288]
[1767570465573,7.24135218,133.88,133.81,6.7288]
[1767570465774,5.56029778,133.87,133.81,6.7288]
[1767570465973,7.24135218,133.88,133.81,6.7288]
[1767570466170,5.5603127,133.87,133.81,6.7288]
[1767570466475,7.24135218,133.88,133.81,6.7288]
[1767570466674,5.56031772,133.87,133.81,6.7288]
[1767570466974,0.51565218,133.87,133.81,6.7288]
[1767570470187,88.3,133.89,133.82,6.7283]
[1767570470481,5.56343236,133.88,133.8,104.6802]
[1767570470785,88.81565218,133.89,133.8,107.09322893]
[1767570470985,5.5649247,133.88,133.8,107.09322893]
[1767570471185,88.81565218,133.89,133.8,107.09322893]
[1767570471382,5.56490611,133.88,133.8,107.09322893]
[1767570471583,88.81565218,133.89,133.83,6.7278]
[1767570471791,5.5650948,133.88,133.83,6.7278]
[1767570471984,88.81565218,133.89,133.83,6.7278]
[1767570472184,5.5650948,133.88,133.83,6.7278]
[1767570472394,88.81565218,133.89,133.83,6.7278]
[1767570472599,5.56528021,133.88,133.83,6.7278]
[1767570472886,88.81565218,133.89,133.83,6.7278]
[1767570473084,5.57014765,133.88,133.83,6.7278]
[1767570473290,88.81565218,133.89,133.83,6.7278]
[1767570473486,5.57189797,133.88,133.83,6.7278]
[1767570473685,88.81565218,133.89,133.83,6.7278]
[1767570473983,5.568323,133.88,133.83,6.7278]
[1767570474185,88.81565218,133.89,133.83,6.7278]
[1767570475188,88.3,133.89,133.84,6.7274]
[1767570480491,0.55351948,133.87,133.76,107.12032893]
[1767570480692,0.55351948,133.87,133.76,195.40032893]
[1767570480895,7.27951948,133.87,133.8,6.7292]
[1767570481092,0.55351948,133.86,133.8,6.7292]
[1767570481490,0.55351948,133.85,133.78,6.7301]
[1767570481695,0.55351948,133.84,133.78,6.7301]
[1767570482000,0.55351948,133.83,133.74,104.7258]
[1767570482988,2.96654841,133.83,133.72,104.7369]
[1767570483194,0.55351948,133.82,133.72,193.0169]
[1767570484700,0.55351948,133.82,133.74,6.7323]
[1767570486800,0.55351948,133.82,133.75,6.7318]
[1767570490705,1.54584613,133.81,133.75,6.7318]
[1767570492107,0.55351948,133.82,133.75,6.7318]
[1767570492315,8.82746561,133.83,133.76,6.7313]
[1767570492910,0.55351948,133.82,133.76,6.7313]
[1767570498919,8.27524613,133.81,133.71,122.14567572]
[1767570499107,0.55351948,133.82,133.69,1.54584613]
[1767570499108,2.09936561,133.79,133.69,1.54584613]
[1767570500615,8.82936561,133.79,133.71,6.7336]
[1767570502814,2.09936561,133.79,133.72,6.7332]
[1767570503018,8.82846561,133.81,133.71,1.54584613]
[1767570503620,0.55351948,133.8,133.71,1.54584613]
[1767570504522,0.55351948,133.8,133.72,1.54584613]
[1767570504725,0.55351948,133.8,133.73,6.7328]
[1767570507435,0.55351948,133.79,133.73,6.7328]
[1767570512932,0.55351948,133.79,133.74,6.7324]
[1767570515831,1.54584613,133.81,133.74,6.7324]
[1767570516133,2.07690268,133.81,133.74,6.7324]
[1767570516540,0.53105655,133.81,133.75,6.7319]
[1767570521240,95.0487,133.82,133.75,6.7319]
[1767570521631,95.57975655,133.82,133.75,6.7319]
[1767570522436,0.53105655,133.81,133.75,6.7319]
[1767570522644,7.26005655,133.81,133.72,1.54584613]
[1767570522843,0.53105655,133.8,133.72,1.54584613]
[1767570523343,0.53105655,133.8,133.72,8.27884613]
[1767570523839,7.26055655,133.8,133.72,8.27884613]
[1767570524638,0.53105655,133.76,133.7,6.7342]
[1767570524834,2.07690268,133.75,133.66,1.54584613]
[1767570525039,8.80900268,133.75,133.64,193.121]
[1767570525244,0.53105655,133.74,133.66,6.7362]
[1767570526151,0.53105655,133.74,133.66,8.28204613]
[1767570527149,0.53105655,133.74,133.66,6.7362]
[1767570527347,0.53105655,133.74,133.66,8.28204613]
[1767570528450,0.53105655,133.74,133.67,6.7358]
[1767570532150,2.07690268,133.74,133.67,6.7358]
[1767570532350,0.53105655,133.73,133.67,6.7358]
[1767570532652,0.53105655,133.73,133.65,6.7366]
[1767570533055,0.53105655,133.69,133.59,104.8402]
[1767570533356,0.53105655,133.69,133.6,1.54584613]
[1767570533757,0.53105655,133.71,133.62,1.54584613]
[1767570534257,0.53105655,133.71,133.63,1.54584613]
[1767570534658,0.53105655,133.71,133.63,8.28364613]
[1767570536355,7.26515655,133.71,133.63,8.28364613]
[1767570536749,0.53105655,133.79,133.67,106.32474613]
[1767570537055,7.26185655,133.78,133.69,1.54584613]
[1767570538561,7.26185655,133.78,133.7,6.7343]
[1767570539062,0.53105655,133.77,133.7,6.7343]
[1767570539262,6.7308,133.78,133.7,6.7343]
[1767570539654,7.26185655,133.78,133.7,6.7343]
[1767570540164,0.53105655,133.78,133.71,6.7338]
[1767570540477,0.53105655,133.78,133.71,8.27964613]
[1767570540852,88.91029699,133.8,133.73,1.54584613]
[1767570541254,0.55029699,133.79,133.71,1.54584613]
[1767570541561,0.55029699,133.78,133.69,194.66804613]
[1767570541762,0.55029699,133.78,133.69,89.90584613]
[1767570541963,2.09614312,133.77,133.69,1.54584613]
[1767570542652,0.55029699,133.76,133.68,1.54584613]
[1767570543673,0.55029699,133.76,133.69,6.7348]
[1767570544074,8.82674312,133.78,133.7,1.54584613]
[1767570544776,0.55029699,133.77,133.7,1.54584613]
[1767570546578,0.55029699,133.77,133.71,6.7337]
[1767570548877,0.55029699,133.77,133.69,6.7347]
[1767570549087,0.55029699,133.79,133.69,107.18289455]
[1767570550283,7.28039699,133.79,133.71,6.7339]
[1767570550673,0.55029699,133.81,133.74,6.7323]
[1767570551380,7.27859699,133.83,133.75,6.7316]
[1767570552284,0.55029699,133.83,133.76,6.7313]
[1767570554981,0.55029699,133.85,133.77,6.7307]
[1767570558500,88.36,133.86,133.76,104.7098]
[1767570558788,0.55029699,133.87,133.77,195.45899455]
[1767570559287,0.55029699,133.87,133.8,6.7293]
[1767570560287,0.55029699,133.87,133.78,6.7302]
[1767570560492,88.89029699,133.9,133.78,193.0118]
[1767570560692,0.55029699,133.89,133.78,193.0118]
[1767570561089,0.55029699,133.91,133.82,104.6611]
[1767570561291,0.55029699,133.93,133.82,104.6611]
[1767570561488,0.55029699,133.92,133.81,2.41679455]
[1767570561681,0.55029699,133.92,133.8,104.6802]
[1767570562681,7.27449699,133.91,133.82,6.7281]
[1767570563297,7.27449699,133.91,133.83,6.7278]
[1767570563600,0.55029699,133.91,133.83,6.7278]
[1767570566805,6.7236,133.92,133.84,6.7273]
[1767570566993,7.27389699,133.92,133.84,6.7273]
[1767570567194,95.57309699,133.94,133.82,104.6652]
[1767570567502,7.27309699,133.94,133.86,6.726]
[1767570567889,7.27199699,133.96,133.88,6.7252]
[1767570568394,0.55029699,133.95,133.88,6.7252]
[1767570570094,0.55029699,133.95,133.86,6.7261]
[1767570570294,0.50269028,133.94,133.86,6.7261]
[1767570571688,7.22519028,133.94,133.86,6.7261]
[1767570573602,0.50269028,133.92,133.84,6.7271]
[1767570574714,7.22629028,133.92,133.84,6.7271]
[1767570575703,0.5380445,133.91,133.84,6.7271]
[1767570578798,7.2620445,133.91,133.84,6.7271]
[1767570578999,7.2620445,133.91,133.82,6.728]
[1767570579609,7.2620445,133.91,133.83,6.7278]
[1767570581804,7.2625445,133.9,133.83,6.7278]
[1767570582200,0.5380445,133.89,133.77,107.11609455]
[1767570582402,0.5380445,133.89,133.77,195.37609455]
[1767570583611,6.726,133.87,133.79,6.7296]
[1767570583907,7.2640445,133.87,133.79,6.7296]
[1767570584305,7.2645445,133.86,133.79,6.7296]
[1767570586118,0.5380445,133.84,133.77,88.26]
[1767570586314,0.5380445,133.84,133.74,104.7267]
[1767570586503,0.5380445,133.84,133.74,192.9867]
[1767570587414,7.2655445,133.84,133.76,6.7313]
[1767570587811,0.5380445,133.82,133.74,6.7323]
[1767570588403,0.5380445,133.82,133.75,6.7318]
[1767570597327,7.2665445,133.82,133.73,95.0126]
[1767570597819,0.5380445,133.8,133.73,95.0126]
[1767570598023,0.5380445,133.8,133.73,6.7326]
[1767570600325,0.5380445,133.8,133.71,9.15039455]
[1767570601227,6.7302,133.79,133.72,6.7334]
[1767570601525,107.06949455,133.84,133.72,6.7334]
[1767570601526,0.5001919,133.86,133.77,2.41679455]
[1767570601822,7.2253919,133.89,133.81,9.14569455]
[1767570602023,0.5001919,133.94,133.85,2.41679455]
[1767570602426,0.5001919,133.96,133.87,2.41679455]
[1767570602925,7.2217919,133.96,133.87,2.41679455]
[1767570603121,0.5001919,133.95,133.87,2.41679455]
[1767570604426,6.7216,133.96,133.87,9.14249455]
[1767570607122,0.5001919,133.94,133.85,9.14369455]
[1767570607517,0.5001919,133.94,133.85,6.7269]
[1767570608522,0.5001919,133.94,133.85,9.14369455]
[1767570609031,106.95309455,133.99,133.85,9.14369455]
[1767570609032,7.2197919,134.0,133.89,2.41679455]
[1767570609330,7.2197919,134.0,133.89,90.69679455]
[1767570610517,7.2197919,134.0,133.92,1.54168522]
[1767570610727,0.5001919,133.99,133.92,1.54168522]
[1767570611530,0.5001919,133.98,133.92,1.54168522]
[1767570611727,0.5001919,133.98,133.9,1.54168522]
[1767570611927,0.5001919,133.97,133.9,1.54168522]
[1767570612119,0.5001919,133.94,133.87,1.54168522]
[1767570612323,0.5001919,133.94,133.85,1.54168522]
[1767570612729,0.5001919,133.94,133.85,8.26838522]
[1767570613330,0.5001919,133.92,133.83,89.80168522]
[1767570613718,8.26588522,133.91,133.83,89.80168522]
[1767570613924,0.5001919,133.9,133.81,1.54168522]
[1767570614125,2.04187712,133.89,133.81,1.54168522]
[1767570614535,0.5001919,133.89,133.8,6.7291]
[1767570614737,6.7246,133.9,133.79,104.6833]
[1767570615534,6.7246,133.9,133.81,6.7286]
[1767570617137,7.2237919,133.92,133.82,6.7282]
[1767570617926,7.2242919,133.91,133.82,6.7282]
[1767570618237,88.7601919,133.93,133.83,6.7275]
[1767570618733,95.4833919,133.93,133.83,6.7275]
[1767570619334,108.35249656,133.96,133.85,104.6409]
[1767570619335,7.2217919,133.96,133.85,104.6409]
[1767570620132,0.5001919,133.96,133.86,104.632]
[1767570620728,0.5001919,133.99,133.86,104.632]
[1767570620934,0.5001919,133.99,133.87,104.6223]
[1767570622537,7.2207919,133.98,133.88,6.7251]
[1767570623734,7.2207919,133.98,133.89,6.7247]
[1767570626743,0.5001919,134.01,133.9,104.6001]
[1767570626938,12.61426832,134.03,133.91,108.38469656]
[1767570627141,13.11446022,134.03,133.91,108.38469656]
[1767570627337,13.11446022,134.03,133.92,6.7233]
[1767570627338,7.2187919,134.02,133.92,6.7233]
[1767570627739,0.5001919,134.01,133.92,6.7233]
[1767570628044,0.5001919,134.01,133.9,6.7241]
[1767570628241,0.5001919,134.01,133.9,104.6007]
[1767570629649,7.2192919,134.01,133.91,6.7236]
[1767570630548,0.52103626,133.99,133.91,6.7236]
[1767570632550,7.24123626,133.99,133.89,6.7246]
[1767570632944,7.24123626,133.99,133.91,6.7239]
[1767570633951,0.52103626,133.99,133.91,6.7239]
[1767570634145,6.7192,134.01,133.92,6.7231]
[1767570634642,7.24023626,134.01,133.92,6.7231]
[1767570635244,7.27245145,134.0,133.9,6.7241]
[1767570636254,7.27245145,134.0,133.91,6.7238]
[1767570638850,0.55285145,134.0,133.9,104.602]
[1767570639256,0.55285145,134.0,133.93,6.7228]
[1767570639558,0.55285145,134.05,133.93,104.5783]
[1767570640150,6.7175,134.04,133.96,6.7212]
[1767570640342,7.27035145,134.04,133.96,6.7212]
[1767570640749,0.55285145,134.04,133.97,6.7208]
[1767570641355,0.55285145,134.03,133.95,6.7216]
[1767570641654,0.55285145,134.03,133.94,88.22]
[1767570642443,192.6944,134.07,133.94,88.22]
[1767570642444,0.55285145,134.01,133.94,94.9422]
[1767570642757,0.55285145,134.01,133.94,88.22]
[1767570644153,0.55285145,134.03,133.94,88.22]
[1767570644755,0.55285145,134.03,133.96,6.7212]
[1767570645159,7.27085145,134.03,133.94,88.22]
[1767570645352,0.55285145,134.02,133.94,88.22]
[1767570645859,0.55285145,134.02,133.95,6.7218]
[1767570647157,6.7176,134.04,133.96,6.7211]
[1767570647358,0.55285145,134.05,133.94,192.7886]
[1767570647963,0.55285145,134.05,133.97,6.7206]
[1767570648163,7.26985145,134.05,133.97,6.7206]
[1767570648351,0.55285145,134.04,133.94,192.7886]
[1767570648953,0.55285145,134.04,133.97,6.7208]
[1767570650160,6.717,134.05,133.97,6.7208]
[1767570651968,0.55285145,134.08,133.96,104.5534]
[1767570652170,5.55155653,134.07,133.96,104.5534]
[1767570652368,0.55285145,134.08,133.96,104.5534]
[1767570652561,12.26863093,134.07,133.99,6.7198]
[1767570652760,6.716,134.07,133.99,6.7198]
[1767570652971,0.55285145,134.08,133.99,6.7198]
[1767570653161,0.55285145,134.06,133.99,6.7198]
[1767570654166,0.55285145,134.06,133.97,6.7205]
[1767570654362,0.55285145,134.06,133.96,104.5534]
[1767570654563,2.09318482,134.06,133.97,1.54033337]
[1767570655070,0.55285145,134.03,133.94,192.7886]
[1767570655263,0.55285145,134.03,133.94,194.32893337]
[1767570655769,0.55285145,134.03,133.96,6.7211]
[1767570657575,7.27085145,134.03,133.94,94.942]
[1767570657774,7.27085145,134.03,133.94,88.22]
[1767570658673,7.27085145,134.03,133.95,6.7218]
[1767570663772,0.48633339,134.01,133.94,88.22]
[1767570663985,0.48633339,134.0,133.88,88.18]
[1767570664275,0.48633339,134.0,133.9,104.5997]
[1767570664785,0.48633339,134.0,133.93,6.7227]
[1767570665484,0.48633339,134.0,133.94,6.7223]
[1767570666181,6.7185,134.02,133.91,104.5921]
[1767570666182,0.48633339,134.02,133.95,6.7218]
[1767570669182,6.7177,134.04,133.95,6.7218]
[1767570669399,5.57465162,134.03,133.95,6.7218]
[1767570669590,7.20403339,134.04,133.95,6.7218]
[1767570669785,192.6614,134.06,133.95,6.7218]
[1767570669786,0.48633339,134.06,133.98,6.7203]
[1767570670491,0.48633339,134.1,133.98,192.7191]
[1767570670684,0.48633339,134.08,133.98,192.7191]
[1767570671187,0.48633339,134.08,134.0,6.7193]
[1767570674983,0.48633339,134.07,134.0,6.7193]
[1767570675186,0.48633339,134.05,133.95,88.18]
[1767570676695,7.20333339,134.05,133.97,6.7207]
[1767570678193,0.48633339,134.03,133.95,94.9016]
[1767570678497,0.48633339,134.06,133.95,88.18]
[1767570679700,6.7172,134.05,133.97,6.7207]
[1767570680999,7.20353339,134.05,133.97,6.7207]
[1767570682293,7.20353339,134.05,133.95,88.18]
[1767570682294,0.48633339,134.03,133.95,94.9015]
[1767570683002,0.48633339,134.02,133.93,6.7226]
[1767570683202,0.48633339,134.02,133.92,88.18]
[1767570683404,0.48633339,134.0,133.92,88.18]
[1767570684398,0.48633339,134.0,133.92,94.9032]
[1767570688608,0.48633339,134.0,133.93,6.7228]
[1767570690399,6.719,134.01,133.93,6.7228]
[1767570690803,7.2063153,134.01,133.93,6.7228]
[1767570692110,0.4873153,133.99,133.88,2.4070509]
[1767570692408,0.4873153,133.99,133.88,88.18]
[1767570693714,6.7211,133.97,133.89,6.7245]
[1767570695114,7.2084153,133.97,133.89,6.7245]
[1767570697414,7.23199108,133.96,133.88,88.18]
[1767570699211,7.23199108,133.96,133.88,94.9053]
[1767570699717,104.5203,134.01,133.88,90.5870509]
[1767570699718,6.7205,133.98,133.88,90.5870509]
[1767570700019,0.51039108,134.01,133.9,2.4070509]
[1767570701523,7.22939108,134.01,133.92,6.7233]
[1767570702917,7.22869108,134.03,133.92,2.4070509]
[1767570703324,7.22869108,134.03,133.93,88.2]
[1767570703817,0.51039108,134.02,133.93,88.2]
[1767570704609,0.51039108,134.02,133.95,6.7217]
[1767570709621,0.51039108,134.01,133.9,2.4070509]
[1767570709824,0.51039108,133.99,133.87,104.6213]
[1767570710121,0.51039108,133.99,133.87,192.8213]
[1767570710326,7.23139108,133.97,133.89,6.7245]
[1767570711120,0.51039108,133.96,133.87,94.9256]
[1767570712526,0.51039108,133.95,133.87,88.2]
[1767570713519,7.23239108,133.95,133.87,88.2]
[1767570714815,6.7226,133.94,133.87,88.2]
[1767570716637,7.23299108,133.94,133.87,88.2]
[1767570716829,7.23299108,133.94,133.86,6.7262]
[1767570718730,6.7217,133.96,133.87,6.7257]
[1767570718932,0.51039108,133.96,133.87,6.7257]
[1767570719330,0.51039108,133.96,133.86,2.4070509]
[1767570719638,6.7225,133.94,133.86,2.4070509]
[1767570720138,6.7225,133.94,133.86,9.1333509]
[1767570720336,7.23219108,133.96,133.86,2.4070509]
[1767570720534,0.51039108,133.96,133.86,2.4070509]
[1767570721540,7.18276202,133.95,133.87,6.7258]
[1767570722534,7.18276202,133.95,133.85,6.7265]
[1767570722741,6.7226,133.94,133.85,6.7265]
[1767570723636,7.18336202,133.94,133.85,6.7265]
[1767570724042,7.18336202,133.94,133.86,6.7263]
[1767570727131,0.46076202,133.94,133.87,6.7258]
[1767570729943,6.722,133.95,133.87,6.7258]
[1767570730339,0.46076202,133.93,133.84,108.56909016]
[1767570731649,0.46076202,133.93,133.86,6.7264]
[1767570735547,104.5437,133.98,133.85,1.54303598]
[1767570735548,7.18256202,133.96,133.88,6.7253]
[1767570736045,0.46076202,134.03,133.95,1.54303598]
[1767570737545,7.17886202,134.03,133.95,8.26483598]
[1767570737740,0.46076202,134.02,133.95,8.26483598]
[1767570738645,7.17926202,134.02,133.95,1.54303598]
[1767570738847,0.46076202,134.02,133.95,1.54303598]
[1767570740545,0.46076202,134.02,133.95,8.26473598]
[1767570742550,7.17796202,134.05,133.97,1.54303598]
[1767570742754,0.46076202,134.04,133.97,1.54303598]
[1767570746358,0.46076202,134.06,133.97,1.54303598]
[1767570746660,0.46076202,134.06,133.99,1.54303598]
[1767570747250,0.46076202,134.06,133.99,8.26253598]
[1767570747451,0.46076202,134.06,133.99,1.54303598]
[1767570749665,0.46076202,134.08,133.99,8.26273598]
[1767570750762,0.41227854,134.07,133.99,8.26273598]
[1767570754761,0.41227854,134.06,133.97,8.26363598]
[1767570755063,8.25913598,134.07,133.97,8.26363598]
[1767570755064,0.41227854,134.04,133.97,6.7206]
[1767570757267,0.41227854,134.04,133.98,6.7203]
[1767570757763,0.41227854,134.04,133.96,8.26413598]
[1767570758161,1.54303598,134.03,133.96,6.7211]
[1767570758468,0.4181704,134.02,133.96,6.7211]
[1767570758661,104.4962,134.04,133.89,104.6061]
[1767570758869,1.96120638,133.99,133.9,1.54303598]
[1767570759771,1.96120638,133.99,133.92,6.723]
[1767570760161,1.96120638,133.95,133.89,6.7248]
[1767570760366,0.4181704,133.94,133.85,106.18133598]
[1767570760569,0.4181704,133.94,133.86,104.6336]
[1767570761074,0.4181704,133.94,133.88,6.7252]
[1767570762465,1.96120638,133.98,133.89,106.15063598]
[1767570762671,0.4181704,133.98,133.89,106.15063598]
[1767570763578,0.4181704,134.0,133.91,8.26653598]
[1767570767764,0.4181704,133.98,133.89,96.44773598]
[1767570767970,0.4181704,133.98,133.9,104.6015]
[1767570768166,1.54303598,133.99,133.91,1.54303598]
[1767570769078,0.4181704,134.0,133.91,1.54303598]
[1767570769778,0.4181704,134.0,133.92,6.7232]
[1767570770172,1.54303598,134.01,133.93,8.26563598]
[1767570770571,0.4181704,134.02,133.93,8.26563598]
[1767570777976,7.1366704,134.02,133.93,8.26563598]
[1767570778171,0.4181704,134.0,133.93,6.7226]
[1767570778377,0.4181704,133.99,133.91,8.26653598]
[1767570780273,0.4181704,133.98,133.91,8.26653598]
[1767570781287,0.40427685,133.97,133.89,96.44763598]
[1767570782181,0.40427685,133.97,133.91,1.54303598]
[1767570782980,0.40427685,133.99,133.91,1.54303598]
[1767570783181,0.40427685,133.99,133.93,1.54303598]
[1767570783383,6.7198,134.0,133.93,1.54303598]
[1767570784276,7.12407685,134.0,133.93,1.54303598]
[1767570786986,1.94731283,134.03,133.92,104.5838]
[1767570787291,0.40427685,134.03,133.97,1.54303598]
[1767570792598,0.40427685,134.03,133.96,6.7213]
[1767570798406,0.40427685,134.09,133.98,2.40735806]
[1767570799099,7.12077685,134.06,133.97,6.7205]
[1767570799298,0.40427685,134.06,133.97,6.7205]
[1767570800596,0.40427685,134.05,133.95,6.7216]
[1767570800795,0.40427685,134.05,133.95,88.18]
[1767570801697,6.7175,134.04,133.96,6.7213]
[1767570805307,6.7175,134.04,133.97,6.7208]
[1767570809210,0.40427685,134.05,133.97,6.7208]
[1767570812213,0.3504198,134.04,133.97,6.7208]
[1767570818323,0.3504198,134.04,133.98,6.7203]
[1767570827630,7.07766849,134.06,133.99,6.7198]
[1767570828333,5.94999046,134.05,133.99,6.7198]
[1767570828529,0.36126849,134.05,133.99,6.7198]
[1767570830137,0.36126849,134.05,133.98,6.7201]
[1767570831327,5.59282093,134.04,133.98,6.7201]
[1767570831536,0.36126849,134.05,133.98,6.7201]
[1767570836043,6.7164,134.06,133.98,6.7201]
[1767570836347,5.59600759,134.05,133.98,6.7201]
[1767570836551,7.07766849,134.06,133.98,6.7201]
[1767570836843,12.67469824,134.05,133.98,6.7201]
[1767570837147,5.59632975,134.04,133.98,6.7201]
[1767570837340,7.07876849,134.04,133.96,6.721]
[1767570837539,0.36126849,134.02,133.93,88.16]
[1767570839547,0.36126849,134.02,133.95,6.7218]
[1767570841045,6.718,134.03,133.95,6.7218]
[1767570841245,5.59347543,134.02,133.95,6.7218]
[1767570841445,6.718,134.03,133.95,6.7218]
[1767570841647,5.59390467,134.02,133.95,6.7218]
[1767570841838,6.718,134.03,133.95,6.7218]
[1767570842042,5.59390467,134.02,133.95,6.7218]
[1767570842344,7.0742881,134.03,133.95,6.7218]
[1767570842646,5.94995589,134.02,133.95,6.7218]
[1767570842848,0.3562881,134.02,133.95,6.7218]
[1767570843041,5.94953647,134.01,133.93,94.8825]
[1767570843242,0.3562881,134.01,133.93,88.16]
[1767570844755,0.3562881,133.99,133.89,104.6064]
[1767570844948,5.94697504,133.98,133.86,209.11686916]
[1767570845136,0.3562881,133.98,133.86,195.21855806]
[1767570845848,0.3562881,134.01,133.9,107.00345806]
[1767570846151,5.62568289,134.0,133.91,88.18]
[1767570846440,0.3562881,134.01,133.91,88.18]
[1767570846639,5.62401249,134.0,133.91,88.18]
[1767570846834,0.3562881,134.01,133.91,88.18]
[1767570847042,5.62401249,134.0,133.91,88.18]
[1767570847344,0.3562881,134.01,133.91,88.18]
[1767570847545,5.62276121,134.0,133.93,6.7225]
[1767570847739,0.3562881,134.01,133.93,6.7225]
[1767570847940,5.62275916,134.0,133.93,6.7225]
[1767570848243,0.3562881,134.01,133.93,6.7225]
[1767570848446,5.62134831,134.0,133.93,6.7225]
[1767570848747,0.3562881,134.01,133.93,6.7225]
[1767570848949,5.62155156,134.0,133.93,6.7225]
[1767570849138,0.3562881,134.01,133.93,6.7225]
[1767570852350,0.3562881,134.01,133.94,6.7223]
[1767570855152,0.3562881,134.0,133.93,1.54123177]
[1767570855348,0.3562881,134.0,133.92,6.723]
[1767570856756,0.3562881,134.0,133.93,6.7228]
[1767570857851,8.26023177,134.01,133.93,8.26403177]
[1767570858154,8.61651987,134.01,133.93,8.26403177]
[1767570858557,8.61651987,134.01,133.94,6.7223]
[1767570858967,88.18,134.02,133.94,6.7223]
[1767570859364,88.18,134.02,133.95,1.54123177]
[1767570859561,0.3562881,134.05,133.97,1.54123177]
[1767570860554,0.3562881,134.05,133.98,6.7203]
[1767570880074,6.7158,134.08,133.99,1.54123177]
[1767570880480,7.052393,134.08,133.99,1.54123177]
[1767570881675,7.052393,134.08,134.0,6.7193]
[1767570886679,0.336593,134.06,133.96,192.7492]
[1767570886885,0.336593,134.02,133.94,89.70123177]
[1767570887084,104.4817,134.06,133.91,104.5921]
[1767570887085,0.336593,134.0,133.91,104.5921]
[1767570887382,0.336593,134.0,133.93,6.7228]
[1767570887679,1.54123177,134.01,133.93,8.26403177]
[1767570887884,1.54123177,134.01,133.94,6.7222]
[1767570888483,1.54123177,134.01,133.93,1.54123177]
[1767570889776,1.54123177,134.01,133.93,8.26403177]
[1767570889986,8.59612477,134.03,133.93,1.54123177]
[1767570890281,8.59612477,134.03,133.95,1.54123177]
[1767570897390,8.59612477,134.03,133.95,8.26303177]
[1767570902189,0.336593,134.03,133.96,6.7213]
[1767570902395,95.2120845,134.05,133.95,1.54123177]
[1767570902797,0.3347845,134.04,133.95,1.54123177]
[1767570903597,0.3347845,134.04,133.97,6.7209]
[1767570904999,7.0522845,134.04,133.95,8.26273177]
[1767570905199,5.66356121,134.03,133.95,8.26273177]
[1767570905400,7.0522845,134.04,133.95,8.26273177]
[1767570906099,7.0522845,134.04,133.96,6.7213]
[1767570906598,0.3347845,134.03,133.96,6.7213]
[1767570906998,0.3347845,134.01,133.9,127.0179]
[1767570907200,0.3347845,133.99,133.91,1.54123177]
[1767570908691,0.3347845,133.99,133.93,6.7228]
[1767570909203,1.87601627,134.02,133.94,6.7221]
[1767570909404,0.3347845,134.04,133.95,89.72123177]
[1767570909701,1.87601627,134.04,133.95,89.72123177]
[1767570909903,0.3347845,134.03,133.95,94.9015]
[1767570912602,1.54123177,134.04,133.96,1.54123177]
[1767570912798,0.3347845,134.05,133.96,1.54123177]
[1767570913190,0.3347845,134.05,133.97,6.7207]
[1767570917908,0.3347845,134.04,133.95,6.7215]
[1767570918202,0.3347845,134.04,133.96,88.18]
[1767570918797,0.3347845,134.04,133.96,94.9013]
[1767570923608,0.3347845,134.0,133.88,18.51600288]
[1767570923809,0.3347845,134.0,133.86,106.6316]
[1767570923810,2.74132591,133.98,133.86,104.6316]
[1767570923999,0.3347845,133.97,133.86,104.6316]
[1767570925609,7.0557845,133.97,133.89,6.7248]
[1767570928609,7.0557845,133.97,133.87,6.7256]
[1767570928809,0.3347845,133.96,133.87,6.7256]
[1767570930313,0.3347845,133.96,133.88,6.7252]
[1767570932109,0.33683891,133.95,133.86,9.13264141]
[1767570932305,0.33683891,133.95,133.86,6.7261]
[1767570932614,0.33683891,133.95,133.86,94.9261]
[1767570937316,0.33683891,133.95,133.87,6.7258]
[1767570940113,0.33683891,133.95,133.88,6.7253]
[1767570941927,0.32973969,133.97,133.89,6.7248]
[1767570948037,7.05083969,133.97,133.89,6.7248]
[1767570950741,0.32973969,133.95,133.87,6.7255]
[1767570951846,0.32973969,133.94,133.85,24.69463404]
[1767570953141,0.32973969,133.91,133.83,6.7276]
[1767570956244,0.32973969,133.91,133.84,6.7273]
[1767570957641,0.32973969,133.91,133.82,6.7281]
[1767570960246,0.32973969,133.9,133.82,6.7281]
[1767570960850,0.32706013,133.89,133.82,6.7281]
[1767570961547,0.32706013,133.88,133.8,94.949]